Cogmind - Beta 15 @@@ ROGUE MODE // 2025.07.08 @ 00:17:35 Player: SuperSwiss Result: Destroyed by L-31 Rogue with Katana Performance ------------- Evolutions (2) 1000 Regions Visited (9) 1800 Robots Destroyed (108) 540 Value Destroyed (4793) 4793 Prototype IDs (26) 520 Alien Tech Used (0) 0 Bonus (4082) 4082 TOTAL SCORE: 12735 Bonus ------- High Alert Combat Kills 583 Follower Combat Kills 799 Entered Garrisons 400 Used RIF Installer 2000 Aligned with FarCom 300 Cogmind --------- Core Integrity 0/550 Matter 219/300 Energy 271/275 System Corruption 12% Temperature Cool (0) Movement Rolling (145) Ox3 Location -8/Materials Parts ------- > --- POWER (1) -------- Deuterium Engine > --- PROPULSION (2) --- Armored Treads (fused) Compact Wheel > --- UTILITY (6) ------ High-capacity Storage Unit Structural Scanner Relay Coupler [Grunt] (12) Relay Coupler [Brawler] (10) Relay Coupler [Specialist] (21) Relay Coupler [Hunter] (1) > --- WEAPON (2) ------- Gauss Rifle Precision Assault Rifle > --- INVENTORY (20) --- Light Nuclear Core High-capacity Matter Pod (200) Light Armor Plating Relay Coupler [NC] (28) Relay Coupler [Swarmer] (26) Relay Coupler [Grunt] (28) Relay Coupler [Brawler] (31) Relay Coupler [Sentry] (33) Relay Coupler [Specialist] (24) Relay Coupler [Behemoth] (16) Minigun Precision Assault Rifle Precision Assault Rifle Remote Datajack Field Lobotomy Kit (5) Powered Hammer Peak State ------------ > --- POWER ------------ Micro Nuclear Core > --- PROPULSION ------- Armored Treads Armored Treads > --- UTILITY ---------- Improved Heat Sink High-capacity Storage Unit Improved Medium Armor Plating Improved Medium Armor Plating Relay Coupler [Grunt] Relay Coupler [Brawler] > --- WEAPON ----------- Enhanced Autogun Gauss Rifle > --- INVENTORY -------- Light Nuclear Core Compact Wheel High-capacity Matter Pod Structural Scanner Relay Coupler [NC] Relay Coupler [Brawler] Relay Coupler [Sentry] Relay Coupler [Sentry] Relay Coupler [Specialist] Relay Coupler [Specialist] Relay Coupler [Hunter] Relay Coupler [Behemoth] Precision Assault Rifle Precision Assault Rifle Precision Assault Rifle Mini Grenade Launcher Remote Datajack Field Lobotomy Kit Powered Hammer [Rating: 43] Favorites ----------- Power Heavy Ion Engine Engine Heavy Ion Engine Power Core Micro Nuclear Core Propulsion Armored Treads Treads Armored Treads Wheel Compact Wheel Utility Hardened Medium Armor Plating Device Improved Heat Sink Storage High-capacity Storage Unit Processor Improved Targeting Computer Hackware Relay Coupler [Brawler] Protection Hardened Medium Armor Plating Weapon Enhanced Autogun Energy Gun Medium Laser Energy Cannon Heavy Particle Cannon Ballistic Gun Enhanced Autogun Launcher Mini Grenade Launcher Special Weapon Remote Datajack Impact Weapon Powered Hammer Special Melee Weapon Datajack Build | -11 -10 -10 -10 -9 -8 -8 -8 -8 -8 ------- Run | Yrd Mat Min Exi Min Mat Gar Mat Gar Mat Slots Evolved 4 | . . . . . 4 . . . . Power . | . . . . . . . . . . Propulsion . | . . . . . . . . . . Utility 4 | . . . . . 4 . . . . Weapon . | . . . . . . . . . . Parts Attached 96 | 7 6 1 2 2 35 19 3 13 8 Power 10 | 1 . . 1 . 3 1 1 1 2 Engine 6 | 1 . . 1 . 2 1 . . 1 Core 4 | . . . . . 1 . 1 1 1 Reactor . | . . . . . . . . . . Propulsion 16 | 2 2 . . 1 9 1 . . 1 Treads 7 | 1 1 . . 1 4 . . . . Leg . | . . . . . . . . . . Wheel 9 | 1 1 . . . 5 1 . . 1 Hover . | . . . . . . . . . . Flight . | . . . . . . . . . . Utility 47 | 2 3 1 . . 14 12 1 10 4 Device 7 | 1 . . . . 3 3 . . . Storage 4 | 1 1 . . . 1 1 . . . Processor 3 | . 1 . . . 2 . . . . Hackware 18 | . . . . . . 7 . 7 4 Protection 15 | . 1 1 . . 8 1 1 3 . Artifact . | . . . . . . . . . . Weapon 23 | 2 1 . 1 1 9 5 1 2 1 Energy Gun 1 | . . . . . 1 . . . . Energy Cannon 1 | . . . . . 1 . . . . Ballistic Gun 16 | 2 . . . 1 6 3 1 2 1 Ballistic Cannon . | . . . . . . . . . . Launcher 1 | . . . . . . 1 . . . Special Weapon 2 | . 1 . . . . 1 . . . Impact Weapon 1 | . . . . . 1 . . . . Slashing Weapon . | . . . . . . . . . . Piercing Weapon . | . . . . . . . . . . Special Melee Weapon 1 | . . . 1 . . . . . . Unidentified Prototypes 3 | . . . . . 3 . . . . Parts Lost 21 | . . . . . 9 3 1 6 2 Power 3 | . . . . . . 1 . 2 . Propulsion 4 | . . . . . 2 1 . 1 . Utility 10 | . . . . . 6 . 1 1 2 Weapon 4 | . . . . . 1 1 . 2 . Highest Loss Streak 3 | . . . . . 2 3 1 3 1 To Critical Strikes . | . . . . . . . . . . Average Backups 16 | 3 10 15 15 15 14 19 19 18 18 Power . | . 1 2 1 1 1 . . . . Propulsion 1 | 1 2 3 3 3 2 2 . . . Utility 6 | . 2 5 5 5 2 8 11 10 11 Weapon 5 | . 2 4 5 4 6 6 5 5 4 Tool/Special . | . . . . . . . . . . Unused Backups 18 | . . . . . 6 2 . . 10 Power 1 | . . . . . 1 . . . . Propulsion 2 | . . . . . 2 . . . . Utility 10 | . . . . . 1 1 . . 8 Weapon 4 | . . . . . 2 1 . . 1 Tool/Special 1 | . . . . . . . . . 1 Average Slot Usage (%) 94 | . 99 100 100 100 90 98 87 92 95 Engine 6 | . 14 14 14 14 8 8 5 . 3 Core 1 | . . . . . . . 2 4 4 Treads 11 | . 15 14 14 14 9 7 9 14 10 Wheel 8 | . 12 14 14 14 8 9 8 3 7 Device 11 | . 13 12 14 1 13 11 9 9 12 Storage 9 | . 14 14 14 14 9 9 9 9 9 Processor 1 | . . . . . 5 1 . . . Hackware 8 | . . . . . . 8 14 17 21 Protection 14 | . . 1 . 12 17 21 11 15 8 Ballistic Gun 14 | . 27 28 . 19 15 14 18 11 9 Special Weapon 2 | . . . 13 . . 1 . 4 3 Impact Weapon 1 | . . . . . . 1 . 2 3 Peak Build Rating 43 | 7 9 10 10 11 39 41 39 43 41 Average Rating 29 | 5 7 9 9 10 24 38 36 37 35 On Entrance 19 | . 7 9 9 10 11 36 37 37 34 Naked Turns . | . . . . . . . . . . Heaviest Build 88 | 15 30 30 28 34 81 88 72 69 65 Greatest Support 43 | 20 40 16 16 16 43 40 40 40 40 Greatest Overweight (x) 8 | 1 2 1 1 2 8 5 4 4 4 Average Overweight (x) 2 | . 1 1 1 2 3 3 3 2 2 Largest Inventory Capacity 20 | 8 15 15 15 15 20 20 20 20 20 Average Capacity 17 | 7 14 15 15 15 15 20 20 20 20 Most Carried 20 | 5 15 15 15 15 20 20 20 20 20 Average Carried 16 | 3 10 15 14 14 14 19 19 18 18 Final Capacity 20 | 8 15 15 15 15 20 20 20 20 20 Final Carried 20 | 5 15 15 15 15 20 20 20 20 16 Class Distribution -------------------- 43% | Mutant 28% | Bothacker-Mutant 21% | Botlord-Mutant 3% | Skirmisher Dominant Class ---------------- Mutant | -10/Materials Mutant | -10/Mines Mutant | -10/Exiles Mutant | -9/Mines Mutant | -8/Materials Bothacker-Mutant | -8/Garrison Bothacker-Mutant | -8/Materials Botlord-Mutant | -8/Garrison Botlord-Mutant | -8/Materials Resources | -11 -10 -10 -10 -9 -8 -8 -8 -8 -8 ----------- Run | Yrd Mat Min Exi Min Mat Gar Mat Gar Mat Matter Collected 5367 | 228 382 91 . 80 1606 1159 251 1199 371 Remotely . | . . . . . . . . . . Salvage Created 4116 | 28 426 106 . 35 1646 571 407 604 293 Parts 246 | 9 23 6 . 2 93 47 11 40 15 Haulers Intercepted 6 | . 1 . . . 5 . . . . Recyclers Shooed 8 | 1 2 . . . . . 4 . 1 Parts Field Recycled . | . . . . . . . . . . Retrieved Matter . | . . . . . . . . . . Parts Self-Destructed . | . . . . . . . . . . Prevented . | . . . . . . . . . . Kills | -11 -10 -10 -10 -9 -8 -8 -8 -8 -8 ------- Run | Yrd Mat Min Exi Min Mat Gar Mat Gar Mat Combat Hostiles Destroyed 86 | . 10 2 . 1 28 18 6 19 2 Guns 80 | . 10 2 . 1 28 15 6 16 2 AOE 6 | . . . . . . 3 . 3 . Classes Destroyed 15 | 1 5 . . . 5 1 1 1 1 Worker 3 | . . . . . 2 . . . 1 Builder 1 | . . . . . 1 . . . . Tunneler 2 | 2 . . . . . . . . . Hauler 6 | . 1 . . . 5 . . . . Recycler 7 | . 1 . . . 2 . 2 . 2 Watcher 3 | . 1 . . . 2 . . . . Swarmer 30 | . 6 . . . 6 8 1 9 . Grunt 31 | . 4 2 . 1 12 5 3 4 . Brawler 1 | . . . . . . . 1 . . Duelist 2 | . . . . . 1 . 1 . . Sentry 11 | . . . . . 7 2 . 1 1 Specialist 2 | . . . . . 2 . . . . Hunter 2 | . . . . . . . . 2 . Programmer 6 | . . . . . . 3 . 3 . Heavy 1 | . . . . . . . . . 1 Best Kill Streak 7 | 2 4 1 . 1 4 7 7 3 2 Combat Bots Only 7 | . 3 1 . 1 4 7 5 3 1 Max Kills in Single Turn 2 | 1 1 1 . 1 2 2 1 2 1 Gunslinging 1 | . . . . . . 1 . 1 . Exploded 2 | . . . . . . 2 . 2 . Melee . | . . . . . . . . . . Uniques/NPCs Destroyed . | . . . . . . . . . . Combat | -11 -10 -10 -10 -9 -8 -8 -8 -8 -8 -------- Run | Yrd Mat Min Exi Min Mat Gar Mat Gar Mat Hostile Shots Fired 455 | . 35 17 . . 170 84 19 109 21 Missed 112 | . 10 4 . . 43 18 6 26 5 Hits 343 | . 25 13 . . 127 66 13 83 16 Melee 14 | . . . . . 4 . 6 . 4 Projectile 329 | . 25 13 . . 123 66 7 83 12 Critical Strikes 18 | . . . . . 8 6 1 3 . Part Disruptions 1 | . . . . . . 1 . . . Damage Taken 5532 | . 320 179 . 28 1781 1063 252 1414 495 Core 694 | . 88 16 . 28 149 153 76 111 73 Absorbed by Shields 78 | . . . . . 78 . . . . Regen/Repaired (Parts) 175 | . . . . . 175 . . . . Core Remaining (%) 73 | 100 . . . 47 . . . . . Volleys Fired 385 | 4 28 9 . 1 125 69 24 96 29 Largest 2 | 2 2 2 . 1 2 2 2 2 2 Hottest 100 | 40 100 40 . 20 100 55 53 56 56 Shots Fired 687 | 8 56 17 . 1 250 119 48 144 44 Gun 627 | 8 55 17 . 1 244 100 48 118 36 Cannon 6 | . . . . . 6 . . . . Launcher 5 | . . . . . . 3 . 2 . Special 49 | . 1 . . . . 16 . 24 8 Kinetic 598 | 8 55 17 . 1 215 100 48 118 36 Thermal 36 | . 1 . . . 35 . . . . Explosive 5 | . . . . . . 3 . 2 . Electromagnetic . | . . . . . . . . . . Robot Hit Streak 20 | 4 20 5 . 2 19 13 11 8 11 Robot Miss Streak 6 | 1 3 3 . . 4 6 6 5 2 Penetration Max 1 | . . . . . . . . 1 1 Secondary Targets 15 | . . . . . 5 6 . 4 . Max Gunslinging Chain 1 | . . . . . 1 1 . 1 . Shots Hit Robots 475 | 6 39 9 . 1 186 81 27 91 35 Core Hits 186 | 3 21 4 . 1 80 27 11 31 8 Critical Kills 7 | . . . . . 2 2 3 . . Critical Parts Destroyed 4 | . 1 . . . 1 2 . . . Critical Strikes 12 | . 1 . . . 4 4 3 . . Burn 1 | . . . . . 1 . . . . Destroy 11 | . 1 . . . 3 4 3 . . Melee Attacks 33 | . . . . . 9 13 . 9 2 Impact 31 | . . . . . 9 11 . 9 2 Slashing . | . . . . . . . . . . Piercing . | . . . . . . . . . . Sneak Attacks 2 | . . . . . . 1 . . 1 Combat Hostiles 1 | . . . . . . 1 . . . Follow-up Attacks . | . . . . . . . . . . Damage Inflicted 8119 | 71 510 120 . 16 3174 1467 544 1505 712 Guns 7480 | 71 510 120 . 16 3099 1227 544 1273 620 Cannons 75 | . . . . . 75 . . . . Explosions 472 | . . . . . . 240 . 232 . Melee 92 | . . . . . . . . . 92 Ramming . | . . . . . . . . . . Kinetic 7265 | 71 510 120 . 16 2884 1227 544 1273 620 Thermal 290 | . . . . . 290 . . . . Explosive 472 | . . . . . . 240 . 232 . Electromagnetic . | . . . . . . . . . . Impact 92 | . . . . . . . . . 92 Slashing . | . . . . . . . . . . Piercing . | . . . . . . . . . . Highest Corruption 12 | . 6 6 6 6 . 2 7 12 12 Average Corruption 7 | . 3 6 6 6 . 1 3 9 12 Corruption Purged . | . . . . . . . . . . Corruption Blocked . | . . . . . . . . . . Effects 207 | . 22 5 5 1 . 20 11 97 46 Message Errors 53 | . 6 2 1 . . 6 1 25 12 Matter Fused 49 | . 3 . 2 1 . 4 2 26 11 Heat Flow Errors 25 | . 2 1 . . . 1 1 13 7 Energy Discharges 19 | . 1 . 1 . . 1 3 11 2 Parts Rejected 4 | . 2 . . . . . 1 . 1 Parts Fused 3 | . . . . . . . . 2 1 Data Loss (minor) 24 | . 2 . 1 . . 8 2 7 4 Data Loss (major) 14 | . 3 1 . . . . 1 5 4 Misfires 8 | . 2 . . . . . . 3 3 Alerts 3 | . . . . . . . . 3 . Misdirections 1 | . . . . . . . . 1 . Weapon Failures 4 | . 1 1 . . . . . 1 1 Overload Shots . | . . . . . . . . . . Overflow Damage 38 | . . . . . . 6 . 32 . Projectiles . | . . . . . . . . . . Explosions 38 | . . . . . . 6 . 32 . Melee . | . . . . . . . . . . Knockbacks . | . . . . . . . . . . Impact . | . . . . . . . . . . Kinetic . | . . . . . . . . . . Secondary . | . . . . . . . . . . Self-Inflicted Damage 92 | . . . . . . . . 92 . Shots 2 | . . . . . . . . 2 . Rammed . | . . . . . . . . . . Targets Rammed . | . . . . . . . . . . Kicked . | . . . . . . . . . . Crushed . | . . . . . . . . . . Highest Temperature 647 | . 242 178 . . 264 647 79 251 253 Average Temperature 97 | . 66 66 . . 58 238 29 92 100 Received Heat Transfer 1487 | . 96 108 . 15 737 279 18 207 27 Effects 15 | . . . . . . 14 . . 1 Shutdowns 2 | . . . . . . 2 . . . Energy Bleed 1 | . . . . . . 1 . . . Interference 1 | . . . . . . . . . 1 Short Circuit 2 | . . . . . . 2 . . . Damage (minor) 1 | . . . . . . 1 . . . Damage (major) 7 | . . . . . . 7 . . . Damage (core) 1 | . . . . . . 1 . . . Siege Activations . | . . . . . . . . . . Martial Activations . | . . . . . . . . . . Shielding Activations . | . . . . . . . . . . Robots Disrupted . | . . . . . . . . . . Combat Hostiles . | . . . . . . . . . . Robots Corrupted . | . . . . . . . . . . Combat Hostiles . | . . . . . . . . . . Parts Fried . | . . . . . . . . . . Impact Corruptions . | . . . . . . . . . . Robots Melted . | . . . . . . . . . . Combat Hostiles . | . . . . . . . . . . Parts Melted 2 | . . . . . . . . 2 . Heat Transferred 814 | . . . . . 814 . . . . Parts Sabotaged . | . . . . . . . . . . Parts Stolen . | . . . . . . . . . . Parts Stripped . | . . . . . . . . . . Power Chain Reactions . | . . . . . . . . . . Alert | -11 -10 -10 -10 -9 -8 -8 -8 -8 -8 ------- Run | Yrd Mat Min Exi Min Mat Gar Mat Gar Mat Maximum Alert Level 5 | . . . . . 1 4 3 5 3 Low Security (%) 31 | 100 100 100 . 100 64 . . . . Level 1 13 | . . . . . 35 14 . . . Level 2 14 | . . . . . . 36 61 10 22 Level 3 21 | . . . . . . 25 38 29 77 Level 4 13 | . . . . . . 22 . 36 . Level 5 5 | . . . . . . . . 23 . High Security . | . . . . . . . . . . Max Security . | . . . . . . . . . . Peak Influence 2163 | 10 182 40 . 58 325 1311 784 2163 1054 Initial 1054 | . . . . . 6 209 638 503 1054 Average 610 | 1 54 9 . 37 150 724 673 1251 822 Influence Increases 5395 | 10 366 50 . 58 1114 1212 396 1900 289 Destroy 0b10 Robot/C 2300 | . 200 40 . 40 660 440 260 560 100 Destroy 0b10 Robot/NC 130 | 10 15 . . . 65 . 15 . 25 Destroy Leader 414 | . 44 10 . 10 184 30 62 30 44 Allied During Kill 328 | . . . . 8 40 54 57 117 52 Successful Hack 85 | . 45 . . . 15 19 . . 6 Disable Machine 105 | . . . . . 60 . . 15 30 Anti-Garrison Action 1600 | . . . . . . 600 . 1000 . Destroy Structure 178 | . 2 . . . 15 69 2 88 2 Lose Combat Pursuer 255 | . 60 . . . 75 . . 90 30 Influence Decreases 4788 | 10 366 50 . 40 810 223 933 511 1845 Entered New Map 2178 | . . . . . 12 113 673 271 1109 Time Decay 1654 | 10 230 50 . 40 688 . 190 . 446 Lost Part 210 | . . . . . 90 30 10 60 20 Lost Ally 610 | . . . . . 20 80 60 180 270 Purge Threat 136 | . 136 . . . . . . . . Squads Dispatched 15 | . . . . . 6 . 4 . 5 Investigation . | . . . . . . . . . . Extermination . | . . . . . . . . . . Reinforcement 6 | . . . . . 3 . 1 . 2 Assault . | . . . . . . . . . . Garrison 9 | . . . . . 3 . 3 . 3 Intercept . | . . . . . . . . . . Searches Triggered . | . . . . . . . . . . Construction Impeded . | . . . . . . . . . . Haulers Reinforced . | . . . . . . . . . . Active Scanning Responses . | . . . . . . . . . . Cargo Convoy Interrupts . | . . . . . . . . . . Stealth | -11 -10 -10 -10 -9 -8 -8 -8 -8 -8 --------- Run | Yrd Mat Min Exi Min Mat Gar Mat Gar Mat Distress Signals 15 | . 2 . . . 7 . 3 . 3 Communications Jammed . | . . . . . . . . . . Distress Signals . | . . . . . . . . . . Times Spotted 161 | . 18 2 . 2 53 26 10 38 12 Peak Tracking Total 6 | . 4 2 . 2 6 4 3 5 2 Tactical Retreats 10 | . 2 . . . 4 . . 2 2 Traps | -11 -10 -10 -10 -9 -8 -8 -8 -8 -8 ------- Run | Yrd Mat Min Exi Min Mat Gar Mat Gar Mat Traps Triggered 14 | . 6 . . . 2 1 . 5 . Indirectly . | . . . . . . . . . . Trap Hack Attempts . | . . . . . . . . . . Triggered . | . . . . . . . . . . Disarmed . | . . . . . . . . . . Reprogrammed . | . . . . . . . . . . Reused . | . . . . . . . . . . Traps Extracted . | . . . . . . . . . . Installed . | . . . . . . . . . . Triggered . | . . . . . . . . . . Machines | -11 -10 -10 -10 -9 -8 -8 -8 -8 -8 ---------- Run | Yrd Mat Min Exi Min Mat Gar Mat Gar Mat Machines Disabled 16 | . . . . . 4 4 . 6 2 Max in Single Turn 2 | . . . . . 1 1 . 2 . Garrison Relay 7 | . . . . . . 4 . 3 . Phase Generator 1 | . . . . . . . . 1 . Machines Repaired . | . . . . . . . . . . Machines Dismantled . | . . . . . . . . . . Machines Sabotaged . | . . . . . . . . . . Overloaded Fab Kills . | . . . . . . . . . . Hacking | -11 -10 -10 -10 -9 -8 -8 -8 -8 -8 --------- Run | Yrd Mat Min Exi Min Mat Gar Mat Gar Mat Machines Accessed 24 | . 6 . 1 1 8 4 1 1 2 Terminals 20 | . 6 . . 1 6 4 . 1 2 Fabricators . | . . . . . . . . . . Repair Stations 1 | . . . . . 1 . . . . Recycling Units . | . . . . . . . . . . Scanalyzers . | . . . . . . . . . . Garrison Access 2 | . . . . . 1 . 1 . . Total Hacks 58 | . 19 . 1 1 23 7 1 1 5 Successful 31 | . 9 . 1 . 16 2 1 . 2 Failed 27 | . 10 . . 1 7 5 . 1 3 Catastrophic 7 | . 3 . . . 2 1 . 1 . Database Lockouts . | . . . . . . . . . . Manual 35 | . 19 . 1 . 11 2 . . 2 Terminals 48 | . 19 . . 1 15 7 . 1 5 Fabricators . | . . . . . . . . . . Repair Stations 7 | . . . . . 7 . . . . Recycling Units . | . . . . . . . . . . Scanalyzers . | . . . . . . . . . . Garrison Access 2 | . . . . . 1 . 1 . . Terminal Hacks 11 | . 4 . 1 . 3 2 . . 1 Robot Analysis 3 | . 2 . . . 1 . . . . Open Door 1 | . . . . . . 1 . . . Level Access Points 1 | . . . . . . . . . 1 Alert Level 1 | . . . . . 1 . . . . Unreport Threat 1 | . 1 . . . . . . . . Hauler Manifests 2 | . 1 . . . 1 . . . . Garrison Registry 1 | . . . . . . 1 . . . Proto ID Catalog 1 | . . . 1 . . . . . . Fabricator Hacks . | . . . . . . . . . . Repair Station Hacks 6 | . . . . . 6 . . . . Scan Component 3 | . . . . . 3 . . . . Repair 3 | . . . . . 3 . . . . Recycling Unit Hacks . | . . . . . . . . . . Scanalyzer . | . . . . . . . . . . Garrison Access Hacks 2 | . . . . . 1 . 1 . . Unlock Access 2 | . . . . . 1 . 1 . . Unauthorized Hacks 12 | . 5 . . . 6 . . . 1 Terminals 12 | . 5 . . . 6 . . . 1 Botnet 12 | . 5 . . . 6 . . . 1 Fabricators . | . . . . . . . . . . Repair Stations . | . . . . . . . . . . Recycling Units . | . . . . . . . . . . Scanalyzers . | . . . . . . . . . . Garrison Access . | . . . . . . . . . . Data Cores Recovered . | . . . . . . . . . . Used . | . . . . . . . . . . Hacking Detections 20 | . 6 . . 1 7 2 1 1 2 Full Trace Events . | . . . . . . . . . . Feedback Events . | . . . . . . . . . . Feedback Blocked . | . . . . . . . . . . Robot Schematics Acquired . | . . . . . . . . . . Robots Built . | . . . . . . . . . . Authchips . | . . . . . . . . . . Time . | . . . . . . . . . . Total Robot Build Rating . | . . . . . . . . . . Part Schematics Acquired . | . . . . . . . . . . Parts Built . | . . . . . . . . . . Authchips . | . . . . . . . . . . Time . | . . . . . . . . . . Total Part Build Rating . | . . . . . . . . . . Parts Repaired 3 | . . . . . 3 . . . . Time 84 | . . . . . 84 . . . . Parts Recycled . | . . . . . . . . . . Recycled Matter . | . . . . . . . . . . Retrieved Matter . | . . . . . . . . . . Retrieved Components . | . . . . . . . . . . Parts Scanalyzed . | . . . . . . . . . . Part Schematics Acquired . | . . . . . . . . . . Parts Damaged . | . . . . . . . . . . Bothacking | -11 -10 -10 -10 -9 -8 -8 -8 -8 -8 ------------ Run | Yrd Mat Min Exi Min Mat Gar Mat Gar Mat Used RIF Installer 4 | . . . . . . 2 . 2 . Code Merge 1 | . . . . . . . . 1 . Zone Cloak 1 | . . . . . . . . 1 . Robot Detection 1 | . . . . . . 1 . . . Robots Hacked 26 | . . . . . . 8 . 12 6 Non-combat 2 | . . . . . . . . . 2 Combat 24 | . . . . . . 8 . 12 4 Robot Hacks Applied 27 | . . . . . . 8 . 13 6 map_route 1 | . . . . . . . . . 1 disable_weapons 1 | . . . . . . . . 1 . go_dormant 1 | . . . . . . . . 1 . streamctrl_high 3 | . . . . . . 1 . 2 . formatsys_high 21 | . . . . . . 7 . 9 5 Relay Couplers Released 29 | . . . . . . 18 . 11 . Machine Destruction 29 | . . . . . . 18 . 11 . Attached 17 | . . . . . . 6 . 7 4 Fabnet Peak Effective % . | . . . . . . . . . . Robots Rewired 12 | . . . . . . 3 . 9 . Allies Hacked 1 | . . . . . . . . 1 . Hacks Repelled . | . . . . . . . . . . Allies | -11 -10 -10 -10 -9 -8 -8 -8 -8 -8 -------- Run | Yrd Mat Min Exi Min Mat Gar Mat Gar Mat Total Allies 39 | . . 3 . . . 11 . 20 5 Largest Group 12 | . . 3 3 3 3 11 8 12 12 Highest-Rated Group 219 | . . 40 40 40 40 219 156 141 157 Highest-Rated Ally 31 | . . 16 16 16 16 31 31 21 21 Total Orders 46 | . . . . . 10 12 3 15 6 STAY 25 | . . . . . 5 6 2 9 3 FOLLOW 21 | . . . . . 5 6 1 6 3 Ally Attacks 254 | . . . . 5 28 28 63 70 60 Total Damage 3260 | . . . . 61 348 310 888 958 695 Kills 35 | . . . . 1 6 4 9 10 5 Allies Corrupted 1 | . . . . . . . . 1 . Allies Melted . | . . . . . . . . . . Intel | -11 -10 -10 -10 -9 -8 -8 -8 -8 -8 ------- Run | Yrd Mat Min Exi Min Mat Gar Mat Gar Mat Active Infowar (turns) 5627 | 15 945 207 249 3 3312 50 . . 846 Optics 485 | . . . . . 485 . . . . Structural 4182 | . . . . . 3286 50 . . 846 Seismic 1562 | 15 945 207 249 3 143 . . . . Robot Analysis Total 3 | . 2 . . . 1 . . . . Derelict Logs Recovered 1 | . . 1 . . . . . . . Drone Launches . | . . . . . . . . . . Drone Recoveries . | . . . . . . . . . . Exploration | -11 -10 -10 -10 -9 -8 -8 -8 -8 -8 ------------- Run | Yrd Mat Min Exi Min Mat Gar Mat Gar Mat Turns Passed 11799 | 96 981 235 249 89 3433 2337 390 2881 1108 Spaces Moved 5795 | 71 679 164 206 54 1631 1189 182 1187 432 Core 2 | 2 . . . . . . . . . Treads 850 | 3 20 . . . 167 1 7 590 62 Legs . | . . . . . . . . . . Wheels 4943 | 66 659 164 206 54 1464 1188 175 597 370 Hover . | . . . . . . . . . . Flight . | . . . . . . . . . . Fastest Speed 50 | 50 95 115 115 130 110 130 145 145 145 Average Speed 155 | 95 114 115 115 130 148 154 163 204 160 Slowest Speed 330 | 160 240 115 115 130 250 330 250 250 250 Overloaded Moves . | . . . . . . . . . . Propulsion Burnouts . | . . . . . . . . . . Robots Hopped . | . . . . . . . . . . Potential Cave-ins . | . . . . . . . . . . Cave-ins Triggered . | . . . . . . . . . . Exploration Rate (%) 49 | 4 98 37 60 18 88 70 13 81 24 Regions Visited 9 Branch Regions 3 Pre-discovered Areas 1 | . . 1 . . . . . . . Known Exits Taken 2 | . . . . . 1 . 1 . . Unknown Exits Taken 5 | 1 1 1 1 1 . . . . . Scrap Searched 2 | . . 1 . 1 . . . . . Spaces Dug 11 | . 1 . . . 9 . . . 1 Terrain Destroyed 123 | . 1 . . . 12 9 . 99 2 Melee 10 | . . . . . 9 . . . 1 Projectile 7 | . 1 . . . 3 . . 2 1 AOE 106 | . . . . . . 9 . 97 . Terrain Rammed . | . . . . . . . . . . Walls Destroyed . | . . . . . . . . . . Machines Disabled . | . . . . . . . . . . Actions | -11 -10 -10 -10 -9 -8 -8 -8 -8 -8 --------- Run | Yrd Mat Min Exi Min Mat Gar Mat Gar Mat Total 7902 | 87 817 191 217 71 2400 1578 237 1500 804 Wait 1244 | 1 84 17 7 9 509 195 21 85 316 Move 5787 | 70 678 163 205 53 1631 1187 182 1186 432 Hop . | . . . . . . . . . . Pick Up 78 | 5 10 . 1 1 28 19 2 10 2 Fast Attach 39 | 7 3 . . . 19 3 1 4 2 Attach 28 | . . . . . 8 8 2 5 5 Detach 2 | . 1 . . . . 1 . . . Swap 162 | . 12 2 3 5 42 53 2 33 10 Drop 61 | . 1 . 1 2 29 19 3 2 4 Fire 385 | 4 28 9 . 1 125 69 24 96 29 Melee 33 | . . . . . 9 13 . 9 2 Ram . | . . . . . . . . . . Kick . | . . . . . . . . . . Crush . | . . . . . . . . . . Escape Stasis 10 | . . . . . . 8 . 2 . Rewire 73 | . . . . . . 3 . 68 2 Trap . | . . . . . . . . . . Miscellaneous . | . . . . . . . . . . Route ------- -11/Scrapyard -10/Materials (discovered 5 exits: [*Mat x3] / [*Min x2]) -10/Mines (discovered 3 exits: [*Mat x2] / *Exi) -10/Exiles (discovered 2 exits: *Min x2) -9/Mines -8/Materials (discovered 3 exits: *Fac x2 / Gar) -8/Garrison (discovered 3 exits: *Mat x3) -8/Materials -8/Garrison (discovered 3 exits: *Fac x2 / *Mat) -8/Materials (discovered 3 exits: Fac x3) History --------- Turn | Location | Event 22 | -11/Scrapyard | Discovered new exit (range 15) 97 | -11/Scrapyard | Entered Materials 163 | -10/Materials | Discovered new exit (range 5) 330 | -10/Materials | Build established: Mutant 591 | -10/Materials | Discovered new exit (range 8) 733 | -10/Materials | Discovered new exit (range 14) 913 | -10/Materials | Discovered new exit (range 8) 978 | -10/Materials | Discovered new exit (range 10) 1078 | -10/Materials | Entered Mines 1161 | -10/Mines | Discovered new exit (range 9) 1179 | -10/Mines | Learned location of Storage (-7) 1186 | -10/Mines | Assisted by bots powering up and referring to "LRC-V3" 1242 | -10/Mines | Discovered new exit (range 3) 1303 | -10/Mines | Deemed a non-threat by the Exiles lab entrance 1303 | -10/Mines | Discovered new exit (range 5) 1313 | -10/Mines | Entered Exiles 1313 | -10/Exiles | Accompanied by 3 allies 1331 | -10/Exiles | Discovered new exit (range 15) 1345 | -10/Exiles | Met 8R-AWN 1365 | -10/Exiles | Met EX-HEX 1397 | -10/Exiles | Met EX-BIN 1411 | -10/Exiles | Aligned with FarCom system 1412 | -10/Exiles | Given EX-Vault access code 1440 | -10/Exiles | Opened EX-Vault 1447 | -10/Exiles | Found Field Lobotomy Kit 1470 | -10/Exiles | Warned to stay clear of 0b10 Research branches 1490 | -10/Exiles | Exiles lab attacked by MAIN.C 1544 | -10/Exiles | Discovered new exit (range 12) 1562 | -10/Exiles | Left Exiles lab with Field Lobotomy Kit 1562 | -10/Exiles | Entered Mines 1562 | -9/Mines | Accompanied by 3 allies 1565 | -9/Mines | Core integrity fell below 50% 1609 | -9/Mines | A weapon hastily lodged in a ceiling crevice suddenly fell to the ground 1638 | -9/Mines | Discovered new exit (range 5) 1651 | -9/Mines | Entered Materials 1651 | -8/Materials | Accompanied by 3 allies 1651 | -8/Materials | Evolved 4 slots: Utility x4 1997 | -8/Materials | Garrison activated, responded to threat 2213 | -8/Materials | Discovered new exit (range 3) 3918 | -8/Materials | Discovered new exit (range 5) 4231 | -8/Materials | Repaired Imp. Treads 4258 | -8/Materials | Repaired Structural Scanner 4286 | -8/Materials | Repaired Wheel 5084 | -8/Materials | Identified exit to Garrison 5084 | -8/Materials | Entered Garrison 5084 | -8/Garrison | Accompanied by 2 allies 5162 | -8/Garrison | Triggered checkpoint 5267 | -8/Garrison | Discovered new exit (range 50) 5267 | -8/Garrison | Discovered new exit (range 70) 5267 | -8/Garrison | Discovered new exit (range 54) 5336 | -8/Garrison | Garrison Relay disabled 5414 | -8/Garrison | Triggered checkpoint 5416 | -8/Garrison | Triggered checkpoint 5468 | -8/Garrison | Destroyed 7 combat bots 5692 | -8/Garrison | Installed Relay Interface Framework 5741 | -8/Garrison | Triggered checkpoint 5854 | -8/Garrison | Garrison Relay disabled 6116 | -8/Garrison | Triggered checkpoint 6157 | -8/Garrison | Build established: Bothacker-Mutant 6170 | -8/Garrison | Expanded RIF knowledge: Robot Detection 6217 | -8/Garrison | Core integrity fell below 50% 6270 | -8/Garrison | Lost 3 parts (1p1n1w) 6450 | -8/Garrison | Garrison Relay disabled 6462 | -8/Garrison | Triggered checkpoint 6784 | -8/Garrison | Triggered checkpoint 6799 | -8/Garrison | Garrison Relay disabled 7421 | -8/Garrison | Entered Materials 7421 | -8/Materials | Accompanied by 8 allies 7522 | -8/Materials | Garrison activated, responded to threat 7649 | -8/Materials | Garrison activated, responded to threat 7811 | -8/Materials | Identified exit to Garrison 7811 | -8/Materials | Entered Garrison 7811 | -8/Garrison | Accompanied by 4 allies 7849 | -8/Garrison | Lost 3 allies 8193 | -8/Garrison | Garrison Relay disabled 8241 | -8/Garrison | Triggered checkpoint 8251 | -8/Garrison | Triggered checkpoint 8310 | -8/Garrison | Triggered checkpoint 8716 | -8/Garrison | Phase Generator disabled 8820 | -8/Garrison | Triggered checkpoint 8964 | -8/Garrison | Triggered checkpoint 8990 | -8/Garrison | Discovered new exit (range 11) 9025 | -8/Garrison | Expanded RIF knowledge: Zone Cloak 9111 | -8/Garrison | Core integrity fell below 20% 9114 | -8/Garrison | System corruption reached 10% 9151 | -8/Garrison | Lost 3 parts (1p1n1w) 9159 | -8/Garrison | Triggered checkpoint 9221 | -8/Garrison | Expanded RIF knowledge: Code Merge 9284 | -8/Garrison | Garrison Relay disabled 9343 | -8/Garrison | Triggered checkpoint 9396 | -8/Garrison | Lost 3 parts (1p1u1w) 9440 | -8/Garrison | Discovered new exit (range 3) 9521 | -8/Garrison | Build established: Botlord-Mutant 9971 | -8/Garrison | Triggered checkpoint 10011 | -8/Garrison | Triggered checkpoint 10082 | -8/Garrison | Discovered new exit (range 14) 10230 | -8/Garrison | Garrison Relay disabled 10692 | -8/Garrison | Entered Materials 10692 | -8/Materials | Accompanied by 10 allies 11332 | -8/Materials | Identified exit to Factory 11427 | -8/Materials | Lost 9 allies 11470 | -8/Materials | Garrison activated, responded to threat 11800 | -8/Materials | Destroyed by L-31 Rogue with Katana Last Messages --------------- 11773_ Technician 3a destroyed. 11777_ K-01 Serf collects debris. 11779_ Jacked B-36 Bruiser... >>formatsys_high Rerouting network defenses. Erasing system data. Installing primary routines, ETC: 6. 11780_ L-31 Rogue sneak attacks. 11780_ Reactivated Bruiser 3c. 11783_ Bruiser 3c destroyed. 11784_ K-01 Serf cleans the Terminal. 11787_ System corrupted: Matter fused (-8). 11787_ K-01 Serf collects debris. 11788_ Slug penetrates L-31 Rogue. 11792_ Slug penetrates Wall. 11795_ R-06 Scavenger collects Lgt. Ion Engine. 11797_ Slug penetrates L-31 Rogue. 11797_ Destroyed Melee Analysis Suite. 11798_ R-06 Scavenger collects Lgt. Armor Plating. 11800_ Slug penetrates Wall. Map ----- +----------------------------------------------------+ | ##?????????## ##??????????????????????????? | | ##?????????## ##??????????????????????????? | | ##?????????## ##??????????????????????????? | | ##?????????## ##??????????????????????????? | | ##?????????## ##??????????????????????????? | | ##?????????## ##??????????????????????????? | | ##?????????## ##??????????????????????????? | | ##?????????## ##??????????????????????????? | | ???????????## ###?????????????????????????? | | ???????????######+######?????????????????????????? | | ################ ##?????????????????????????? | | ################ ##?????????????????????????? | | ########????????????????